{"text_format":"1","workbook":"xlsx","n_sheets":2,"sheets":["Гиперссылки","Макрос"],"not_rendered":{"charts":0,"images":0,"macros":1,"external_links":0,"defined_names":0,"comments":0,"pivot_tables":0},"unopened":[],"bounds":{"document_bytes":16777216,"sheet_cells":100000,"rows_first":2000,"rows_last":500,"rows_between":2000,"halvings":0,"cell_chars":16384,"cell_head_chars":4096},"cells_cut":0,"cells_raw":0,"read":"whole","date_system":"1900"}

{"sheet":"Гиперссылки","index":0,"n_rows":78,"n_cols":4,"rows_kept":78,"cut":false,"hidden":false,"merged":[[5,1,15,1],[17,1,27,1],[29,1,39,1],[41,1,51,1],[53,1,63,1],[65,1,75,1]]}
[]
[]
[]
[null,"Раздел","Подраздел","Сумма"]
[]
[null,"Материалы","Материал1",{"$f":"RANDBETWEEN(1,1000)","v":597}]
[null,null,"Материал2",{"$f":"RANDBETWEEN(1,1000)","v":295}]
[null,null,"Материал3",91]
[null,null,"Материал4",609]
[null,null,"Материал5",800]
[null,null,"Материал6",576]
[null,null,"Материал7",303]
[null,null,"Материал8",943]
[null,null,"Материал9",602]
[null,null,"Материал10",944]
[null,null,"ИТОГО",{"$f":"SUM(D6:D15)","v":5760}]
[]
[null,"Работы","Работа1",{"$f":"RANDBETWEEN(1,1000)","v":317}]
[null,null,"Работа2",{"$f":"RANDBETWEEN(1,1000)","v":134}]
[null,null,"Работа3",970]
[null,null,"Работа4",871]
[null,null,"Работа5",729]
[null,null,"Работа6",912]
[null,null,"Работа7",29]
[null,null,"Работа8",579]
[null,null,"Работа9",648]
[null,null,"Работа10",355]
[null,null,"ИТОГО",{"$f":"SUM(D18:D27)","v":5544}]
[]
[null,"Прочее","Прочее1",{"$f":"RANDBETWEEN(1,1000)","v":667}]
[null,null,"Прочее2",{"$f":"RANDBETWEEN(1,1000)","v":583}]
[null,null,"Прочее3",498]
[null,null,"Прочее4",996]
[null,null,"Прочее5",969]
[null,null,"Прочее6",59]
[null,null,"Прочее7",973]
[null,null,"Прочее8",916]
[null,null,"Прочее9",265]
[null,null,"Прочее10",918]
[null,null,"ИТОГО",{"$f":"SUM(D30:D39)","v":6844}]
[]
[null,"Ещё что-то","Ещё что-то1",{"$f":"RANDBETWEEN(1,1000)","v":336}]
[null,null,"Ещё что-то2",{"$f":"RANDBETWEEN(1,1000)","v":787}]
[null,null,"Ещё что-то3",45]
[null,null,"Ещё что-то4",908]
[null,null,"Ещё что-то5",979]
[null,null,"Ещё что-то6",168]
[null,null,"Ещё что-то7",705]
[null,null,"Ещё что-то8",337]
[null,null,"Ещё что-то9",146]
[null,null,"Ещё что-то10",62]
[null,null,"ИТОГО",{"$f":"SUM(D42:D51)","v":4473}]
[]
[null,"Командировки","Командировки1",{"$f":"RANDBETWEEN(1,1000)","v":577}]
[null,null,"Командировки2",{"$f":"RANDBETWEEN(1,1000)","v":723}]
[null,null,"Командировки3",101]
[null,null,"Командировки4",298]
[null,null,"Командировки5",66]
[null,null,"Командировки6",568]
[null,null,"Командировки7",200]
[null,null,"Командировки8",23]
[null,null,"Командировки9",868]
[null,null,"Командировки10",770]
[null,null,"ИТОГО",{"$f":"SUM(D54:D63)","v":4194}]
[]
[null,"Ну я не знаю","Ну я не знаю1",{"$f":"RANDBETWEEN(1,1000)","v":52}]
[null,null,"Ну я не знаю2",{"$f":"RANDBETWEEN(1,1000)","v":532}]
[null,null,"Ну я не знаю3",792]
[null,null,"Ну я не знаю4",399]
[null,null,"Ну я не знаю5",742]
[null,null,"Ну я не знаю6",101]
[null,null,"Ну я не знаю7",592]
[null,null,"Ну я не знаю8",457]
[null,null,"Ну я не знаю9",636]
[null,null,"Ну я не знаю10",865]
[null,null,"ИТОГО",{"$f":"SUM(D66:D75)","v":5168}]
[]
[null,"ОГОГО",null,{"$f":"D16+D28+D40+D52+D64+D76","v":31983}]

{"sheet":"Макрос","index":1,"n_rows":78,"n_cols":4,"rows_kept":78,"cut":false,"hidden":false,"merged":[[5,1,15,1],[17,1,27,1],[29,1,39,1],[41,1,51,1],[53,1,63,1],[65,1,75,1]]}
[]
[]
[]
[null,"Раздел","Подраздел","Сумма"]
[]
[null,"Материалы","Материал1",{"$f":"RANDBETWEEN(1,1000)","v":790}]
[null,null,"Материал2",{"$f":"RANDBETWEEN(1,1000)","v":25}]
[null,null,"Материал3",50]
[null,null,"Материал4",897]
[null,null,"Материал5",994]
[null,null,"Материал6",831]
[null,null,"Материал7",810]
[null,null,"Материал8",740]
[null,null,"Материал9",527]
[null,null,"Материал10",48]
[null,null,"ИТОГО",{"$f":"SUM(D6:D15)","v":5712}]
[]
[null,"Работы","Работа1",{"$f":"RANDBETWEEN(1,1000)","v":723}]
[null,null,"Работа2",{"$f":"RANDBETWEEN(1,1000)","v":758}]
[null,null,"Работа3",982]
[null,null,"Работа4",22]
[null,null,"Работа5",716]
[null,null,"Работа6",854]
[null,null,"Работа7",755]
[null,null,"Работа8",442]
[null,null,"Работа9",887]
[null,null,"Работа10",405]
[null,null,"ИТОГО",{"$f":"SUM(D18:D27)","v":6544}]
[]
[null,"Прочее","Прочее1",{"$f":"RANDBETWEEN(1,1000)","v":997}]
[null,null,"Прочее2",{"$f":"RANDBETWEEN(1,1000)","v":275}]
[null,null,"Прочее3",7]
[null,null,"Прочее4",357]
[null,null,"Прочее5",583]
[null,null,"Прочее6",922]
[null,null,"Прочее7",885]
[null,null,"Прочее8",762]
[null,null,"Прочее9",192]
[null,null,"Прочее10",85]
[null,null,"ИТОГО",{"$f":"SUM(D30:D39)","v":5065}]
[]
[null,"Ещё что-то","Ещё что-то1",{"$f":"RANDBETWEEN(1,1000)","v":735}]
[null,null,"Ещё что-то2",{"$f":"RANDBETWEEN(1,1000)","v":495}]
[null,null,"Ещё что-то3",962]
[null,null,"Ещё что-то4",671]
[null,null,"Ещё что-то5",20]
[null,null,"Ещё что-то6",509]
[null,null,"Ещё что-то7",392]
[null,null,"Ещё что-то8",787]
[null,null,"Ещё что-то9",470]
[null,null,"Ещё что-то10",742]
[null,null,"ИТОГО",{"$f":"SUM(D42:D51)","v":5783}]
[]
[null,"Командировки","Командировки1",{"$f":"RANDBETWEEN(1,1000)","v":667}]
[null,null,"Командировки2",{"$f":"RANDBETWEEN(1,1000)","v":708}]
[null,null,"Командировки3",9]
[null,null,"Командировки4",232]
[null,null,"Командировки5",466]
[null,null,"Командировки6",190]
[null,null,"Командировки7",233]
[null,null,"Командировки8",301]
[null,null,"Командировки9",942]
[null,null,"Командировки10",351]
[null,null,"ИТОГО",{"$f":"SUM(D54:D63)","v":4099}]
[]
[null,"Ну я не знаю","Ну я не знаю1",{"$f":"RANDBETWEEN(1,1000)","v":384}]
[null,null,"Ну я не знаю2",{"$f":"RANDBETWEEN(1,1000)","v":315}]
[null,null,"Ну я не знаю3",202]
[null,null,"Ну я не знаю4",413]
[null,null,"Ну я не знаю5",770]
[null,null,"Ну я не знаю6",915]
[null,null,"Ну я не знаю7",162]
[null,null,"Ну я не знаю8",385]
[null,null,"Ну я не знаю9",211]
[null,null,"Ну я не знаю10",382]
[null,null,"ИТОГО",{"$f":"SUM(D66:D75)","v":4139}]
[]
[null,"ОГОГО",null,{"$f":"D16+D28+D40+D52+D64+D76","v":31342}]